bitfinex-derivatives/quotes_BNBF0:USTF0_20250904
["timestamp","ask_amount","ask_price","bid_price","bid_amount"]
[1757030291209,0.7233137,843.62,842.9,1.6000398]
[1757030291408,0.7233137,843.61,842.9,1.6000398]
[1757030291611,0.7233137,843.6,842.91,1.6000398]
[1757030291912,0.7233137,843.59,842.92,1.6000398]
[1757030292109,0.7233137,843.58,842.92,1.6000398]
[1757030292410,0.7233137,843.57,842.92,1.6000398]
[1757030292709,0.7233137,843.56,842.9,1.6000398]
[1757030293013,0.20627112,843.84,842.85,1.6000398]
[1757030293209,0.72383315,843.83,842.85,1.6000398]
[1757030293411,0.72383315,843.82,842.86,1.6000398]
[1757030293609,0.72383315,843.81,842.86,1.6000398]
[1757030293813,0.72383315,843.8,842.86,1.6000398]
[1757030294011,0.72383315,843.79,842.86,1.6000398]
[1757030294313,0.72383315,843.78,842.86,1.6000398]
[1757030294612,0.72383315,843.77,842.86,1.6000398]
[1757030294811,0.72383315,843.76,842.86,1.6000398]
[1757030295111,0.72383315,843.75,842.86,1.6000398]
[1757030295313,0.72383315,843.74,842.86,1.6000398]
[1757030295513,0.72383315,843.73,842.86,1.6000398]
[1757030295713,0.72383315,843.72,842.86,1.6000398]
[1757030296013,0.72383315,843.71,842.86,1.6000398]
[1757030296214,0.72383315,843.7,842.86,1.6000398]
[1757030296518,0.72383315,843.69,842.85,1.6000398]
[1757030296718,0.72383315,843.68,842.86,1.6000398]
[1757030296918,0.72383315,843.67,842.85,1.6000398]
[1757030297118,0.72383315,843.66,842.85,1.6000398]
[1757030297315,0.72383315,843.65,842.86,1.6000398]
[1757030297515,0.72383315,843.64,842.86,1.6000398]
[1757030297715,0.72383315,843.63,842.86,1.6000398]
[1757030297920,0.72383315,843.62,842.84,1.6000398]
[1757030298120,0.72383315,843.61,842.84,1.6000398]
[1757030298421,0.72383315,843.6,842.84,1.6000398]
[1757030298716,0.72383315,843.59,842.84,1.6000398]
[1757030298915,0.72383315,843.58,842.84,1.6000398]
[1757030299216,0.72383315,843.57,842.84,1.6000398]
[1757030299415,0.72383315,843.56,842.84,1.6000398]
[1757030299620,0.20627112,843.84,842.84,1.6000398]
[1757030299821,0.72396211,843.83,842.84,1.6000398]
[1757030300021,0.72396211,843.82,842.84,1.6000398]
[1757030300326,0.72396211,843.81,842.84,1.6000398]
[1757030300523,0.72396211,843.8,842.84,1.6000398]
[1757030300727,0.72396211,843.79,842.84,1.6000398]
[1757030300923,0.72396211,843.78,842.84,1.6000398]
[1757030301226,0.72396211,843.77,842.84,1.6000398]
[1757030301423,0.72396211,843.76,842.84,1.6000398]
[1757030301628,0.72396211,843.75,842.84,1.6000398]
[1757030301827,0.72396211,843.74,842.84,1.6000398]
[1757030302024,0.72396211,843.73,842.84,1.6000398]
[1757030302224,0.72396211,843.72,842.84,1.6000398]
[1757030302424,0.72396211,843.71,842.84,1.6000398]
[1757030302724,0.72396211,843.7,842.86,1.6000398]
[1757030302925,0.72396211,843.69,842.92,1.6000398]
[1757030303127,0.72396211,843.68,842.92,1.6000398]
[1757030303328,0.72396211,843.67,842.92,1.6000398]
[1757030303525,0.72396211,843.66,842.92,1.6000398]
[1757030303724,0.72396211,843.65,842.92,1.6000398]
[1757030303928,0.72396211,843.64,842.92,1.6000398]
[1757030304228,0.72396211,843.63,842.92,1.6000398]
[1757030304530,0.72396211,843.62,842.92,1.6000398]
[1757030304729,0.72396211,843.61,842.92,1.6000398]
[1757030304925,0.72396211,843.6,842.92,1.6000398]
[1757030305127,0.72396211,843.59,842.92,1.6000398]
[1757030305328,0.72396211,843.58,842.92,1.6000398]
[1757030305525,0.72396211,843.57,842.92,1.6000398]
[1757030305729,0.99369626,843.84,842.92,1.6000398]
[1757030305931,1.51132869,843.83,842.93,1.6000398]
[1757030306226,0.72390355,843.82,842.93,1.6000398]
[1757030306530,0.72390355,843.81,842.93,1.6000398]
[1757030306731,0.20627112,843.84,842.55,0.20627112]
[1757030306732,0.72390355,843.8,842.94,1.6000398]
[1757030306931,0.72390355,843.79,842.94,1.6000398]
[1757030307231,0.72390355,843.78,842.94,1.6000398]
[1757030307430,0.72390355,843.77,842.92,1.6000398]
[1757030307632,0.78742514,843.83,842.92,1.6000398]
[1757030307633,0.72390355,843.76,842.92,1.6000398]
[1757030307831,0.72390355,843.75,842.96,1.6000398]
[1757030308027,0.72390355,843.74,842.96,1.6000398]
[1757030308231,0.72390355,843.73,842.96,1.6000398]
[1757030308429,0.72390355,843.72,842.96,1.6000398]
[1757030308631,0.72390355,843.71,842.95,1.6000398]
[1757030308828,0.78742514,843.81,842.95,1.6000398]
[1757030308829,0.72390355,843.7,842.95,1.6000398]
[1757030309133,0.72390355,843.69,842.93,1.6000398]
[1757030309430,0.72390355,843.68,842.93,1.6000398]
[1757030309633,0.72390355,843.67,842.93,1.6000398]
[1757030309829,0.72390355,843.66,842.93,1.6000398]
[1757030310130,0.72390355,843.65,842.93,1.6000398]
[1757030310333,0.72390355,843.64,842.93,1.6000398]
[1757030310530,0.72390355,843.63,842.93,1.6000398]
[1757030310834,0.72390355,843.62,842.93,1.6000398]
[1757030311028,0.72390355,843.61,842.93,1.6000398]
[1757030311227,0.72390355,843.6,842.93,1.6000398]
[1757030311433,0.72390355,843.59,842.93,1.6000398]
[1757030311630,0.72390355,843.58,842.93,1.6000398]
[1757030311929,0.72390355,843.57,842.93,1.6000398]
[1757030312130,0.72390355,843.56,842.93,1.6000398]
[1757030312335,0.72390355,843.55,842.93,1.6000398]
[1757030312535,0.72390355,843.54,842.93,1.6000398]
[1757030312732,0.78742514,843.78,842.93,1.6000398]
[1757030313034,0.72386237,843.77,842.93,1.6000398]
[1757030313236,0.72386237,843.76,842.93,1.6000398]
[1757030313433,0.72386237,843.75,842.93,1.6000398]
[1757030313630,0.72386237,843.74,842.86,1.6000398]
[1757030313932,0.72386237,843.73,842.86,1.6000398]
[1757030314133,0.72386237,843.72,842.86,1.6000398]
[1757030314331,0.72386237,843.71,842.86,1.6000398]
[1757030314535,0.72386237,843.7,842.86,1.6000398]
[1757030314732,0.72386237,843.69,842.86,1.6000398]
[1757030314935,0.72386237,843.68,842.86,1.6000398]
[1757030315132,0.72386237,843.67,842.86,1.6000398]
[1757030315336,0.72386237,843.66,842.86,1.6000398]
[1757030315536,0.72386237,843.65,842.86,1.6000398]
[1757030315735,0.72386237,843.64,842.86,1.6000398]
[1757030315931,0.72386237,843.63,842.86,1.6000398]
[1757030316135,0.72386237,843.62,842.86,1.6000398]
[1757030316430,0.72386237,843.61,842.86,1.6000398]
[1757030316634,0.72386237,843.6,842.86,1.6000398]
[1757030316935,0.72386237,843.59,842.86,1.6000398]
[1757030317132,0.72386237,843.58,842.86,1.6000398]
[1757030317332,0.72386237,843.57,842.87,1.6000398]
[1757030317538,0.72386237,843.56,842.87,1.6000398]
[1757030317733,0.72386237,843.55,842.87,1.6000398]
[1757030317938,0.72386237,843.54,842.87,1.6000398]
[1757030318139,0.72386237,843.53,842.87,1.6000398]
[1757030318338,0.78742514,843.81,842.87,1.6000398]
[1757030318533,0.72388201,843.8,842.87,1.6000398]
[1757030318734,0.72388201,843.79,842.87,1.6000398]
[1757030318938,0.72388201,843.78,842.87,1.6000398]
[1757030319137,0.72388201,843.77,842.87,1.6000398]
[1757030319338,0.72388201,843.76,842.87,1.6000398]
[1757030319534,0.72388201,843.75,842.87,1.6000398]
[1757030319837,0.72388201,843.74,842.87,1.6000398]
[1757030320037,0.72388201,843.73,842.87,1.6000398]
[1757030320237,0.72388201,843.72,842.87,1.6000398]
[1757030320435,0.72388201,843.71,842.87,1.6000398]
[1757030320639,0.72388201,843.7,842.87,1.6000398]
[1757030320835,0.72388201,843.69,842.87,1.6000398]
[1757030321039,0.72388201,843.68,842.87,1.6000398]
[1757030321239,0.72388201,843.67,842.87,1.6000398]
[1757030321440,0.78742514,843.81,842.87,1.6000398]
[1757030321441,0.72388201,843.66,842.87,1.6000398]
[1757030321637,0.72388201,843.65,842.87,1.6000398]
[1757030321838,0.72388201,843.64,842.87,1.6000398]
[1757030322042,0.72388201,843.63,842.87,1.6000398]
[1757030322337,0.72388201,843.62,842.88,1.6000398]
[1757030322537,0.72388201,843.61,842.88,1.6000398]
[1757030322745,0.78742514,843.8,842.87,1.6000398]
[1757030322746,0.72388201,843.6,842.87,1.6000398]
[1757030322943,0.72388201,843.59,842.87,1.6000398]
[1757030323143,0.78742514,843.8,842.87,1.6000398]
[1757030323144,0.72388201,843.58,842.87,1.6000398]
[1757030323344,0.72388201,843.57,842.93,1.6000398]
[1757030323542,0.72388201,843.56,842.93,1.6000398]
[1757030323741,0.72388201,843.55,842.93,1.6000398]
[1757030324042,0.72388201,843.54,842.93,1.6000398]
[1757030324247,0.72388201,843.53,842.93,1.6000398]
[1757030324445,0.78742514,843.77,842.93,1.6000398]
[1757030324645,0.72423279,843.76,842.93,1.6000398]
[1757030324845,0.72423279,843.75,842.93,1.6000398]
[1757030325046,0.72423279,843.74,842.93,1.6000398]
[1757030325247,0.72423279,843.73,842.93,1.6000398]
[1757030325447,0.72423279,843.72,842.93,1.6000398]
[1757030325645,0.72423279,843.71,842.93,1.6000398]
[1757030325849,0.72423279,843.7,842.93,1.6000398]
[1757030326049,0.72423279,843.69,842.93,1.6000398]
[1757030326349,0.72423279,843.68,842.94,1.6000398]
[1757030326649,0.72423279,843.67,842.94,1.6000398]
[1757030326945,0.72423279,843.66,842.94,1.6000398]
[1757030327148,0.72423279,843.65,842.94,1.6000398]
[1757030327348,0.78742514,843.77,842.94,1.6000398]
[1757030327349,0.72423279,843.64,842.94,1.6000398]
[1757030327649,0.72423279,843.63,842.94,1.6000398]
[1757030327849,0.72423279,843.62,842.94,1.6000398]
[1757030328049,0.72423279,843.61,842.94,1.6000398]
[1757030328252,0.72423279,843.6,842.94,1.6000398]
[1757030328452,0.72423279,843.59,842.93,1.6000398]
[1757030328652,0.72423279,843.58,842.93,1.6000398]
[1757030328946,0.72423279,843.57,842.9,1.6000398]
[1757030329153,0.72423279,843.56,842.9,1.6000398]
[1757030329346,0.72423279,843.55,842.91,1.6000398]
[1757030329545,0.72423279,843.54,842.91,1.6000398]
[1757030329750,0.72423279,843.53,842.74,1.6000398]
[1757030330048,0.72423279,843.52,842.74,1.6000398]
[1757030330253,0.72423279,843.51,842.74,1.6000398]
[1757030330454,0.20627112,843.84,842.74,1.6000398]
[1757030330654,0.72450227,843.83,842.74,1.6000398]
[1757030330855,0.72450227,843.82,842.74,1.6000398]
[1757030331053,0.20627112,843.84,842.74,1.6000398]
[1757030331054,0.72450227,843.81,842.74,1.6000398]
[1757030331353,0.72450227,843.8,842.74,1.6000398]
[1757030331550,0.72450227,843.79,842.74,1.6000398]
[1757030331754,0.72450227,843.78,842.74,1.6000398]
[1757030332054,0.20627112,843.84,842.55,0.20627112]
[1757030332055,0.72450227,843.77,842.75,1.6000398]
[1757030332249,0.72450227,843.76,842.75,1.6000398]
[1757030332451,0.72450227,843.75,842.75,1.6000398]
[1757030332652,0.72450227,843.74,842.75,1.6000398]
[1757030332955,0.72450227,843.73,842.75,1.6000398]
[1757030333155,0.72450227,843.72,842.75,1.6000398]
[1757030333453,0.72450227,843.71,842.75,1.6000398]
[1757030333656,0.72450227,843.7,842.75,1.6000398]
[1757030333856,0.72450227,843.69,842.76,1.6000398]
[1757030334058,0.72450227,843.68,842.76,1.6000398]
[1757030334356,0.72450227,843.67,842.76,1.6000398]
[1757030334557,0.72450227,843.66,842.76,1.6000398]
[1757030334754,0.72450227,843.65,842.76,1.6000398]
[1757030335057,0.72450227,843.64,842.76,1.6000398]
[1757030335252,0.72450227,843.63,842.63,1.6000398]
[1757030335455,0.72450227,843.62,842.62,1.6000398]
[1757030335657,0.72450227,843.61,842.62,1.6000398]
[1757030335855,0.20627112,843.84,842.62,1.6000398]
[1757030335856,0.72450227,843.6,842.62,1.6000398]
[1757030336055,0.72450227,843.59,842.62,1.6000398]
[1757030336258,0.72450227,843.58,842.63,1.6000398]
[1757030336458,0.72450227,843.57,842.63,1.6000398]
[1757030336658,0.72450227,843.56,842.63,1.6000398]
[1757030336855,0.72450227,843.55,842.63,1.6000398]
[1757030337054,0.72450227,843.54,842.63,1.6000398]
[1757030337262,0.72450227,843.53,842.63,1.6000398]
[1757030337553,0.72450227,843.52,842.63,1.6000398]
[1757030337759,0.72450227,843.51,842.63,1.6000398]
[1757030337958,0.72450227,843.5,842.63,1.6000398]
[1757030338155,0.72450227,843.49,842.63,1.6000398]
[1757030338354,0.72450227,843.48,842.63,1.6000398]
[1757030338559,0.20627112,843.84,842.63,1.6000398]
[1757030338759,0.72484065,843.83,842.63,1.6000398]
[1757030338955,0.72484065,843.82,842.64,1.6000398]
[1757030339158,0.72484065,843.81,842.64,1.6000398]
[1757030339358,0.72484065,843.8,842.64,1.6000398]
[1757030339559,0.72484065,843.79,842.67,1.6000398]
[1757030339757,0.72484065,843.78,842.67,1.6000398]
[1757030340060,0.72484065,843.77,842.68,1.6000398]
[1757030340359,0.20627112,843.84,842.68,1.6000398]
[1757030340360,0.72484065,843.76,842.68,1.6000398]
[1757030340557,0.72484065,843.75,842.68,1.6000398]
[1757030340757,0.72484065,843.74,842.68,1.6000398]
[1757030340956,0.72484065,843.73,842.68,1.6000398]
[1757030341256,0.72484065,843.72,842.68,1.6000398]
[1757030341560,0.72484065,843.71,842.64,1.6000398]
[1757030341757,0.72484065,843.7,842.64,1.6000398]
[1757030341955,0.72484065,843.69,842.64,1.6000398]
[1757030342157,0.72484065,843.68,842.64,1.6000398]
[1757030342360,0.72484065,843.67,842.64,1.6000398]
[1757030342560,0.72484065,843.66,842.64,1.6000398]
[1757030342760,0.72484065,843.65,842.64,1.6000398]
[1757030342957,0.72484065,843.64,842.64,1.6000398]
[1757030343156,0.72484065,843.63,842.64,1.6000398]
[1757030343361,0.72484065,843.62,842.64,1.6000398]
[1757030343560,0.72484065,843.61,842.64,1.6000398]
[1757030343763,0.72484065,843.6,842.64,1.6000398]
[1757030343962,0.20627112,843.84,842.64,1.6000398]
[1757030343963,0.72484065,843.59,842.64,1.6000398]
[1757030344162,0.72486916,843.58,842.64,1.6000398]
[1757030344361,0.72486916,843.57,842.65,1.6000398]
[1757030344565,0.72486916,843.56,842.65,1.6000398]
[1757030344859,0.72486916,843.55,842.65,1.6000398]
[1757030345159,0.72486916,843.54,842.76,1.6000398]
[1757030345359,0.72486916,843.53,842.76,1.6000398]
[1757030345560,0.72486916,843.52,842.76,1.6000398]
[1757030345763,0.72486916,843.51,842.76,1.6000398]
[1757030345964,0.72486916,843.5,842.76,1.6000398]
[1757030346159,0.72486916,843.49,842.78,1.6000398]
[1757030346361,0.72486916,843.48,842.78,1.6000398]
[1757030346659,0.79060313,843.83,842.78,1.6000398]
[1757030346862,0.72489268,843.82,842.78,1.6000398]
[1757030347064,0.72489268,843.81,842.78,1.6000398]
[1757030347260,0.72489268,843.8,842.79,1.6000398]
[1757030347464,0.72489268,843.79,842.79,1.6000398]
[1757030347664,0.72489268,843.78,842.79,1.6000398]
[1757030347864,0.72489268,843.77,842.79,1.6000398]
[1757030348063,0.72489268,843.76,842.79,1.6000398]
[1757030348265,0.72489268,843.75,842.79,1.6000398]
[1757030348566,0.72489268,843.74,842.79,1.6000398]
[1757030348763,0.72489268,843.73,842.79,1.6000398]
[1757030348963,0.72489268,843.72,842.79,1.6000398]
[1757030349163,0.72489268,843.71,842.79,1.6000398]
[1757030349466,0.72489268,843.7,842.79,1.6000398]
[1757030349763,0.72489268,843.69,842.79,1.6000398]
[1757030349967,0.72489268,843.68,842.79,1.6000398]
[1757030350167,0.72489268,843.67,842.79,1.6000398]
[1757030350365,0.72489268,843.66,842.79,1.6000398]
[1757030350564,0.72489268,843.65,842.79,1.6000398]
[1757030350766,0.72489268,843.64,842.79,1.6000398]
[1757030350965,0.72489268,843.63,842.78,1.6000398]
[1757030351267,0.72489268,843.62,842.9,1.6000398]
[1757030351464,0.72489268,843.61,842.9,1.6000398]
[1757030351665,0.72489268,843.6,842.9,1.6000398]
[1757030351965,0.72489268,843.6,841.99,2.666733]
[1757030351966,0.72489268,843.59,842.86,1.6000398]
[1757030352169,0.72489268,843.58,842.93,1.6000398]
[1757030352363,0.79060313,843.76,841.83,3.7334262]
[1757030352364,0.72489268,843.57,842.92,1.6000398]
[1757030352668,0.72489268,843.56,842.92,1.6000398]
[1757030352866,0.72489268,843.55,842.92,1.6000398]
[1757030353069,0.72489268,843.54,842.92,1.6000398]
[1757030353268,0.72489268,843.53,842.92,1.6000398]
[1757030353469,0.72489268,843.52,842.92,1.6000398]
[1757030353768,0.72489268,843.51,842.92,1.6000398]
[1757030353967,0.72489268,843.5,842.92,1.6000398]
[1757030354168,0.72489268,843.49,842.92,1.6000398]
[1757030354369,0.79060313,843.76,842.92,1.6000398]
[1757030354570,0.72479692,843.75,842.92,1.6000398]
[1757030354870,0.72479692,843.74,842.92,1.6000398]
[1757030355169,0.72479692,843.73,842.92,1.6000398]
[1757030355370,0.72479692,843.72,842.92,1.6000398]
[1757030355569,0.72479692,843.71,842.92,1.6000398]
[1757030355766,0.72479692,843.7,842.92,1.6000398]
[1757030355965,0.72479692,843.69,842.93,1.6000398]
[1757030356170,0.72479692,843.68,842.93,1.6000398]
[1757030356370,0.72479692,843.67,842.93,1.6000398]
[1757030356569,0.72479692,843.66,842.93,1.6000398]
[1757030356769,0.72479692,843.65,842.93,1.6000398]
[1757030356968,0.72479692,843.64,842.93,1.6000398]
[1757030357167,0.72479692,843.63,842.93,1.6000398]
[1757030357368,0.72479692,843.62,842.92,1.6000398]
[1757030357567,0.72479692,843.61,842.92,1.6000398]
[1757030357769,0.72479692,843.6,842.93,1.6000398]
[1757030358072,0.72479692,843.59,842.92,1.6000398]
[1757030358273,0.72479692,843.58,842.92,1.6000398]
[1757030358468,0.72479692,843.57,842.92,1.6000398]
[1757030358672,0.72479692,843.56,842.92,1.6000398]
[1757030358873,0.72479692,843.55,842.92,1.6000398]
[1757030359071,0.72479692,843.54,842.92,1.6000398]
[1757030359270,0.72479692,843.53,842.92,1.6000398]
[1757030359473,0.72479692,843.52,842.93,1.6000398]
[1757030359673,0.72479692,843.51,842.93,1.6000398]
[1757030359870,0.72479692,843.5,842.93,1.6000398]
[1757030360070,0.72479692,843.49,842.95,1.6000398]
[1757030360275,0.72479692,843.48,842.96,1.6000398]
[1757030360469,0.79060313,843.74,842.96,1.6000398]
[1757030360669,0.72486822,843.73,842.96,1.6000398]
[1757030360872,0.72486822,843.72,842.96,1.6000398]
[1757030361073,0.72486822,843.71,842.96,1.6000398]
[1757030361275,0.72486822,843.7,842.96,1.6000398]
[1757030361472,0.72486822,843.69,842.96,1.6000398]
[1757030361671,0.72486822,843.68,842.98,1.6000398]
[1757030361971,0.72486822,843.67,842.98,1.6000398]
[1757030362272,0.72486822,843.66,842.98,1.6000398]
[1757030362575,0.72486822,843.65,842.98,1.6000398]
[1757030362775,0.79060313,843.72,842.98,1.6000398]
[1757030362776,0.72486822,843.64,842.98,1.6000398]
[1757030363076,0.72486822,843.63,842.98,1.6000398]
[1757030363376,0.72486822,843.62,843.0,1.6000398]
[1757030363577,0.72486822,843.61,843.0,1.6000398]
[1757030363774,0.72486822,843.6,843.0,1.6000398]
[1757030364077,0.72486822,843.59,843.0,1.6000398]
[1757030364274,0.72486822,843.58,843.0,1.6000398]
[1757030364478,0.79060313,843.74,843.0,1.6000398]
[1757030364479,0.72486822,843.57,843.0,1.6000398]
[1757030364674,0.72486822,843.56,843.0,1.6000398]
[1757030364877,0.72486822,843.55,843.0,1.6000398]
[1757030365081,0.72486822,843.54,843.0,1.6000398]
[1757030365376,0.72486822,843.53,843.01,1.6000398]
[1757030365576,0.72486822,843.52,842.92,1.6000398]
[1757030365781,0.72486822,843.51,842.92,1.6000398]
[1757030365979,0.72486822,843.5,842.92,1.6000398]
[1757030366279,0.72486822,843.49,842.92,1.6000398]
[1757030366478,0.79060313,843.78,842.93,1.6000398]
[1757030366675,0.72501362,843.77,842.93,1.6000398]
[1757030366880,0.72501362,843.76,842.93,1.6000398]
[1757030367081,0.72501362,843.75,842.93,1.6000398]
[1757030367277,0.72501362,843.74,842.93,1.6000398]
[1757030367580,0.72501362,843.73,842.93,1.6000398]
[1757030367779,0.72501362,843.72,842.93,1.6000398]
[1757030367977,0.72501362,843.71,842.93,1.6000398]
[1757030368179,0.72501362,843.7,842.93,1.6000398]
[1757030368376,0.72501362,843.69,842.93,1.6000398]
[1757030368580,0.72501362,843.68,842.93,1.6000398]
[1757030368780,0.72501362,843.67,842.93,1.6000398]
[1757030368977,0.72501362,843.66,842.93,1.6000398]
[1757030369181,0.72501362,843.65,842.93,1.6000398]
[1757030369382,0.72501362,843.64,842.93,1.6000398]
[1757030369580,0.72501362,843.63,842.93,1.6000398]
[1757030369779,0.72501362,843.62,842.93,1.6000398]
[1757030369978,0.72501362,843.61,842.94,1.6000398]
[1757030370178,0.72501362,843.6,842.94,1.6000398]
[1757030370383,0.72501362,843.59,842.94,1.6000398]
[1757030370583,0.72501362,843.58,842.94,1.6000398]
[1757030370785,0.72501362,843.57,842.94,1.6000398]
[1757030370985,0.72501362,843.56,842.94,1.6000398]
[1757030371286,0.72501362,843.55,842.93,1.6000398]
[1757030371481,0.72501362,843.54,842.93,1.6000398]
[1757030371685,0.72501362,843.53,842.93,1.6000398]
[1757030371980,0.72501362,843.52,842.93,1.6000398]
[1757030372179,0.72501362,843.51,842.93,1.6000398]
[1757030372383,0.72501362,843.5,842.94,1.6000398]
[1757030372582,0.72501362,843.49,842.94,1.6000398]
[1757030372783,0.79060313,843.78,842.94,1.6000398]
[1757030372981,0.72498707,843.77,842.94,1.6000398]
[1757030373184,0.72498707,843.76,842.94,1.6000398]
[1757030373384,0.72498707,843.75,842.94,1.6000398]
[1757030373585,0.72498707,843.74,842.94,1.6000398]
[1757030373785,0.72498707,843.73,842.94,1.6000398]
[1757030374089,0.72498707,843.72,842.94,1.6000398]
[1757030374384,0.72497174,843.71,842.94,1.6000398]
[1757030374684,0.72497174,843.7,842.94,1.6000398]
[1757030374888,0.72497174,843.69,842.94,1.6000398]
[1757030375183,0.72497174,843.68,842.94,1.6000398]
[1757030375388,0.72497174,843.67,842.94,1.6000398]
[1757030375585,0.72497174,843.66,843.0,1.6000398]
[1757030375789,0.72497174,843.65,843.0,1.6000398]
[1757030376089,0.72497174,843.64,843.0,1.6000398]
[1757030376285,0.72497174,843.63,843.0,1.6000398]
[1757030376489,0.72497174,843.62,843.0,1.6000398]
[1757030376790,0.72497174,843.61,843.0,1.6000398]
[1757030377086,0.72497174,843.6,843.0,1.6000398]
[1757030377289,0.72497174,843.59,843.0,1.6000398]
[1757030377589,0.72497174,843.58,843.0,1.6000398]
[1757030377786,0.72497174,843.57,843.0,1.6000398]
[1757030377985,0.72497174,843.56,843.0,1.6000398]
[1757030378290,0.72497174,843.55,843.0,1.6000398]
[1757030378489,0.72497174,843.54,843.0,1.6000398]
[1757030378788,0.72497174,843.53,843.0,1.6000398]
[1757030378992,0.72497174,843.52,843.0,1.6000398]
[1757030379187,0.72497174,843.51,843.0,1.6000398]
[1757030379486,0.72497174,843.5,843.0,1.6000398]
[1757030379689,0.79072774,843.74,843.0,1.6000398]
[1757030379888,0.72495458,843.73,843.0,1.6000398]
[1757030380088,0.72495458,843.72,843.0,1.6000398]
[1757030380292,0.72495458,843.71,843.0,1.6000398]
[1757030380495,0.72495458,843.7,842.92,1.6000398]
[1757030380695,0.72495458,843.69,842.92,1.6000398]
[1757030380990,0.72495458,843.68,842.92,1.6000398]
[1757030381191,0.72495458,843.67,842.92,1.6000398]
[1757030381392,0.72495458,843.66,842.92,1.6000398]
[1757030381593,0.72495458,843.65,842.92,1.6000398]
[1757030381792,0.72495458,843.64,842.92,1.6000398]
[1757030381992,0.72495458,843.63,842.92,1.6000398]
[1757030382195,0.72495458,843.62,842.92,1.6000398]
[1757030382395,0.72495458,843.61,842.92,1.6000398]
[1757030382695,0.72495458,843.6,842.92,1.6000398]
[1757030382896,0.72495458,843.59,842.92,1.6000398]
[1757030383094,0.72495458,843.58,842.92,1.6000398]
[1757030383297,0.72495458,843.57,842.92,1.6000398]
[1757030383494,0.72495458,843.56,842.92,1.6000398]
[1757030383793,0.72495458,843.55,842.92,1.6000398]
[1757030384096,0.79072774,843.79,842.92,1.6000398]
[1757030384097,0.72495458,843.54,842.92,1.6000398]
[1757030384297,0.72495458,843.53,842.92,1.6000398]
[1757030384493,0.72495458,843.52,842.92,1.6000398]
[1757030384794,0.72495458,843.51,842.92,1.6000398]
[1757030384997,0.72495458,843.5,842.92,1.6000398]
[1757030385197,0.79072774,843.79,842.92,1.6000398]
[1757030385494,0.72493426,843.78,842.92,1.6000398]
[1757030385797,0.72493426,843.77,842.92,1.6000398]
[1757030386094,0.72493426,843.76,842.92,1.6000398]
[1757030386294,0.72493426,843.75,842.82,1.6000398]
[1757030386493,0.72493426,843.74,842.82,1.6000398]
[1757030386693,0.72493426,843.73,842.82,1.6000398]
[1757030386998,0.72493426,843.72,842.82,1.6000398]
[1757030387194,0.72493426,843.71,842.82,1.6000398]
[1757030387397,0.72493426,843.7,842.82,1.6000398]
[1757030387600,0.72493426,843.69,842.82,1.6000398]
[1757030387798,0.72493426,843.68,842.82,1.6000398]
[1757030387997,0.72493426,843.67,842.82,1.6000398]
[1757030388297,0.72493426,843.66,842.82,1.6000398]
[1757030388599,0.72493426,843.65,842.82,1.6000398]
[1757030388799,0.72493426,843.64,842.82,1.6000398]
[1757030388997,0.72493426,843.63,842.82,1.6000398]
[1757030389296,0.72493426,843.62,842.82,1.6000398]
[1757030389498,0.72492736,843.61,842.82,1.6000398]
[1757030389701,0.72492736,843.6,842.82,1.6000398]
[1757030389901,0.72492736,843.59,842.82,1.6000398]
[1757030390100,0.72492736,843.58,842.82,1.6000398]
[1757030390297,0.72492736,843.57,842.84,1.6000398]
[1757030390501,0.72492736,843.56,842.85,1.6000398]
[1757030390699,0.72492736,843.55,842.85,1.6000398]
[1757030390903,0.72492736,843.54,842.85,1.6000398]
[1757030391097,0.72492736,843.53,842.85,1.6000398]
[1757030391397,0.72492736,843.52,842.85,1.6000398]
[1757030391597,0.72492736,843.51,842.85,1.6000398]
[1757030391797,0.7906793,843.85,842.87,1.6000398]
[1757030392001,0.72494391,843.84,842.87,1.6000398]
[1757030392200,0.72494391,843.83,842.86,1.6000398]
[1757030392398,0.72494391,843.82,842.86,1.6000398]
[1757030392597,0.72494391,843.81,842.86,1.6000398]
[1757030392798,0.72494391,843.8,842.86,1.6000398]
[1757030393100,0.72494391,843.79,842.86,1.6000398]
[1757030393299,0.72494391,843.78,842.86,1.6000398]
[1757030393502,0.72494391,843.77,842.86,1.6000398]
[1757030393801,0.72494391,843.76,842.86,1.6000398]
[1757030393999,0.72494391,843.75,842.86,1.6000398]
[1757030394198,0.72494391,843.74,842.86,1.6000398]
[1757030394399,0.7906793,843.85,842.86,1.6000398]
[1757030394400,0.72494391,843.73,842.86,1.6000398]
[1757030394598,0.72494391,843.72,842.86,1.6000398]
[1757030394800,0.72494391,843.71,842.86,1.6000398]
[1757030394999,0.72494391,843.7,842.86,1.6000398]
[1757030395300,0.72494391,843.69,842.84,1.6000398]
[1757030395498,0.72494391,843.68,842.84,1.6000398]
[1757030395802,0.72494391,843.67,842.83,1.6000398]
[1757030396003,0.72494391,843.66,842.83,1.6000398]
[1757030396204,0.72494391,843.65,842.83,1.6000398]
[1757030396497,2.6322811,845.04,842.9,1.6000398]
[1757030396498,0.72494391,843.64,842.9,1.6000398]
[1757030396703,0.72494391,843.63,842.9,1.6000398]
[1757030396901,0.72494391,843.62,842.9,1.6000398]
[1757030397103,0.72494391,843.61,842.9,1.6000398]
[1757030397304,0.72494391,843.6,842.91,1.6000398]
[1757030397501,0.72494391,843.59,842.91,1.6000398]